Cogmind - Beta 17 @@@ ROGUE MODE // 2026.07.30 @ 21:54:31 Player: TheSkyeDoctor Result: Destroyed by H-55 Commando with Assault Rifle Performance ------------- Evolutions (2) 1000 Regions Visited (3) 600 Robots Destroyed (20) 100 Value Destroyed (489) 489 Prototype IDs (2) 40 Alien Tech Used (0) 0 Bonus (5050) 5050 TOTAL SCORE: 7279 Bonus ------- Prayed to X0-1V1 5000 Major X0-1V1 Interference 50 Cogmind --------- Core Integrity 0/425 Matter 138/150 Energy 99/100 System Corruption 0% Temperature Cool (0) Movement Rolling (100) Location -8/Materials Parts ------- > --- POWER (1) -------- (None) > --- PROPULSION (3) --- Compact Wheel > --- UTILITY (3) ------ Improved Heat Sink Advanced Visual Processing Unit X0-1V1's Piety Tracker > --- WEAPON (4) ------- Light Assault Rifle > --- INVENTORY (5) ---- Small Storage Unit Large Storage Unit High-capacity Battery (250) Large Matter Pod (4) Improved Terrain Scanner Peak State ------------ > --- POWER ------------ Ion Engine > --- PROPULSION ------- Wheel > --- UTILITY ---------- Large Storage Unit Advanced Visual Processing Unit X0-1V1's Piety Tracker > --- WEAPON ----------- Advanced Beam Rifle Assault Rifle Light Assault Rifle > --- INVENTORY -------- Improved Heat Sink Small Storage Unit Large Battery Large Matter Pod Improved Terrain Scanner [Rating: 25] Favorites ----------- Power Ion Engine Engine Ion Engine Propulsion Light Treads Treads Light Treads Wheel Wheel Utility Small Storage Unit Device X0-1V1's Piety Tracker Storage Small Storage Unit Processor Advanced Visual Processing Unit Weapon Light Assault Rifle Energy Gun Advanced Beam Rifle Ballistic Gun Light Assault Rifle Launcher Grenade Launcher Build | -11 -10 -10 -8 ------- Run | Yrd Mat Sub Mat Slots Evolved 4 | . . . 4 Power . | . . . . Propulsion 1 | . . . 1 Utility 1 | . . . 1 Weapon 2 | . . . 2 Parts Attached 20 | 7 3 2 8 Power 2 | 1 . . 1 Engine 2 | 1 . . 1 Core . | . . . . Reactor . | . . . . Propulsion 4 | 2 . 1 1 Treads 2 | 2 . . . Leg . | . . . . Wheel 2 | . . 1 1 Hover . | . . . . Flight . | . . . . Utility 7 | 2 2 1 2 Device 4 | 1 2 . 1 Storage 2 | 1 . 1 . Processor 1 | . . . 1 Hackware . | . . . . Protection . | . . . . Artifact . | . . . . Weapon 7 | 2 1 . 4 Energy Gun 2 | . . . 2 Energy Cannon . | . . . . Ballistic Gun 3 | 2 . . 1 Ballistic Cannon . | . . . . Launcher 2 | . 1 . 1 Special Weapon . | . . . . Impact Weapon . | . . . . Slashing Weapon . | . . . . Piercing Weapon . | . . . . Special Melee Weapon . | . . . . Unidentified Prototypes 2 | . 1 . 1 Parts Lost 13 | . 2 3 8 Power 2 | . . 1 1 Propulsion 3 | . . 2 1 Utility 2 | . 1 . 1 Weapon 6 | . 1 . 5 Highest Loss Streak 8 | . 1 2 8 To Critical Strikes . | . . . . Average Backups 4 | 1 3 6 5 Power . | . 1 1 . Propulsion . | . 1 . . Utility 2 | . 1 4 5 Weapon . | . . . . Tool/Special . | . . . . Unused Backups 4 | . . . 4 Power . | . . . . Propulsion . | . . . . Utility 4 | . . . 4 Weapon . | . . . . Tool/Special . | . . . . Average Slot Usage (%) 80 | . 99 77 49 Engine 8 | . 14 2 5 Treads 17 | . 28 15 . Wheel 2 | . . 2 6 Device 12 | . 13 14 10 Storage 11 | . 14 14 5 Processor 2 | . . . 8 Ballistic Gun 22 | . 26 28 10 Peak Build Rating 25 | 7 20 20 25 Average Rating 12 | 5 7 18 18 On Entrance 11 | . 7 20 18 Avg Prop Armor Cover (%) . | . . . . Naked Turns . | . . . . Heaviest Build 31 | 14 15 24 31 Greatest Support 40 | 40 40 40 16 Greatest Overweight (x) 3 | . . 2 3 Average Overweight (x) . | . . 1 . Largest Inventory Capacity 15 | 8 8 15 15 Average Capacity 9 | 7 8 12 10 Most Carried 7 | 3 6 7 5 Average Carried 4 | 1 3 6 4 Final Capacity 15 | 8 8 15 5 Final Carried 6 | 3 6 6 5 Class Distribution -------------------- 98% | Mutant Dominant Class ---------------- Mutant | -10/Materials Mutant | -10/Subcaves Mutant | -8/Materials Resources | -11 -10 -10 -8 ----------- Run | Yrd Mat Sub Mat Matter Collected 554 | 225 108 219 2 Remotely . | . . . . Salvage Created 465 | 12 189 89 175 Parts 47 | 2 27 7 11 Haulers Intercepted . | . . . . Recyclers Shooed . | . . . . Parts Field Recycled . | . . . . Retrieved Matter . | . . . . Parts Self-Destructed 4 | . . 4 . Prevented . | . . . . Parts Restored . | . . . . Kills | -11 -10 -10 -8 ------- Run | Yrd Mat Sub Mat Combat Hostiles Destroyed 13 | . 6 2 5 Guns 8 | . 2 2 4 AOE 5 | . 4 . 1 Classes Destroyed 8 | 1 5 1 1 Worker 2 | . 1 . 1 Builder 2 | . 2 . . Tunneler 1 | 1 . . . Watcher 2 | . 2 . . Swarmer 4 | . 2 . 2 Grunt 6 | . 4 . 2 Sentry 1 | . . . 1 Subdweller 2 | . . 2 . Best Kill Streak 7 | 1 7 2 4 Combat Bots Only 4 | . 4 2 3 Max Kills in Single Turn 2 | 1 2 1 1 Gunslinging . | . . . . Exploded 2 | . 2 . 1 Melee . | . . . . Uniques/NPCs Destroyed . | . . . . Combat | -11 -10 -10 -8 -------- Run | Yrd Mat Sub Mat Hostile Shots Fired 153 | . 34 25 94 Missed 49 | . 13 8 28 Hits 104 | . 21 17 66 Projectile 104 | . 21 17 66 Critical Strikes 2 | . . . 2 Damage Taken 1658 | . 322 385 951 Core 553 | . 37 87 429 Absorbed by Shields . | . . . . Core Remaining (%) 75 | 100 . 50 . Volleys Fired 70 | 3 20 20 27 Largest 3 | 2 2 2 3 Hottest 101 | 40 50 40 101 Shots Fired 123 | 6 40 40 37 Gun 114 | 6 33 40 35 Cannon . | . . . . Launcher 9 | . 7 . 2 Special . | . . . . Kinetic 90 | 6 33 40 11 Thermal 21 | . . . 21 Explosive 9 | . 7 . 2 Electromagnetic 3 | . . . 3 Robot Hit Streak 17 | 3 11 17 5 Robot Miss Streak 4 | 1 2 2 4 Penetration Max . | . . . . Secondary Targets 1 | . . . 1 Max Gunslinging Chain 1 | . . . 1 Shots Hit Robots 84 | 5 27 33 19 Core Hits 40 | 2 18 9 11 Critical Kills . | . . . . Critical Parts Destroyed 1 | . 1 . . Critical Strikes 3 | . 1 . 2 Burn 2 | . . . 2 Destroy 1 | . 1 . . Melee Attacks . | . . . . Impact . | . . . . Slashing . | . . . . Piercing . | . . . . Sneak Attacks . | . . . . Combat Hostiles . | . . . . Follow-up Attacks . | . . . . Damage Inflicted 1343 | 52 622 303 366 Guns 908 | 52 212 303 341 Cannons . | . . . . Explosions 435 | . 410 . 25 Melee . | . . . . Ramming . | . . . . Kinetic 648 | 52 212 303 81 Thermal 260 | . . . 260 Explosive 435 | . 410 . 25 Electromagnetic . | . . . . Impact . | . . . . Slashing . | . . . . Piercing . | . . . . Highest Corruption 3 | . 3 3 . Average Corruption 2 | . 2 3 . Corruption Purged . | . . . . Corruption Blocked . | . . . . Effects 14 | . 6 8 . Message Errors 5 | . 2 3 . Matter Fused 6 | . 3 3 . Data Loss (major) 3 | . 1 2 . Overload Shots . | . . . . Overflow Damage 8 | . 1 . 7 Projectiles . | . . . . Explosions 8 | . 1 . 7 Melee . | . . . . Knockbacks . | . . . . Impact . | . . . . Kinetic . | . . . . Secondary . | . . . . Self-Inflicted Damage 152 | . 63 . 89 Shots 6 | . 4 . 2 Rammed . | . . . . Targets Rammed . | . . . . Kicked . | . . . . Crushed . | . . . . Highest Temperature 32 | . 32 . 6 Average Temperature 10 | . 10 . 6 Received Heat Transfer 585 | . 138 60 387 Siege Activations . | . . . . Martial Activations . | . . . . Shielding Activations . | . . . . Robots Disrupted . | . . . . Combat Hostiles . | . . . . Robots Corrupted . | . . . . Combat Hostiles . | . . . . Parts Fried . | . . . . Impact Corruptions . | . . . . Robots Melted . | . . . . Combat Hostiles . | . . . . Parts Melted 2 | . . . 2 Heat Transferred 629 | . . . 629 Parts Sabotaged . | . . . . Parts Stolen . | . . . . Parts Stripped . | . . . . Power Chain Reactions . | . . . . Alert | -11 -10 -10 -8 ------- Run | Yrd Mat Sub Mat Maximum Alert Level . | . . . . Low Security (%) 100 | 100 100 . 100 Level 1 . | . . . . Level 2 . | . . . . Level 3 . | . . . . Level 4 . | . . . . Level 5 . | . . . . High Security . | . . . . Max Security . | . . . . Peak Influence 173 | 5 173 . 141 Initial . | . . . . Average 59 | . 79 . 47 Influence Increases 566 | 5 260 . 301 Destroy 0b10 Robot/C 220 | . 120 . 100 Destroy 0b10 Robot/NC 35 | 5 25 . 5 Destroy Leader 64 | . 34 . 30 Disable Machine 45 | . 30 . 15 Destroy Structure 52 | . 36 . 16 Lose Combat Pursuer 150 | . 15 . 135 Influence Decreases 435 | 5 182 78 170 Entered New Map 38 | . . 38 . Time Decay 297 | 5 162 30 100 Lost Part 100 | . 20 10 70 Squads Dispatched 5 | . 1 . 4 Investigation . | . . . . Extermination . | . . . . Reinforcement 3 | . 1 . 2 Assault . | . . . . Garrison 2 | . . . 2 Intercept . | . . . . Searches Triggered . | . . . . Construction Impeded . | . . . . Haulers Reinforced . | . . . . Active Scanning Responses . | . . . . Cargo Convoy Interrupts . | . . . . Stealth | -11 -10 -10 -8 --------- Run | Yrd Mat Sub Mat Distress Signals 4 | . 2 . 2 Communications Jammed . | . . . . Distress Signals . | . . . . Times Spotted 40 | . 10 5 25 Peak Tracking Total 11 | . 4 2 11 Tactical Retreats 4 | . 1 . 3 Traps | -11 -10 -10 -8 ------- Run | Yrd Mat Sub Mat Traps Triggered 2 | . 2 . . Indirectly . | . . . . Trap Hack Attempts . | . . . . Triggered . | . . . . Disarmed . | . . . . Reprogrammed . | . . . . Reused . | . . . . Traps Extracted . | . . . . Installed . | . . . . Triggered . | . . . . Machines | -11 -10 -10 -8 ---------- Run | Yrd Mat Sub Mat Machines Disabled 3 | . 2 . 1 Max in Single Turn 1 | . 1 . 1 Machines Repaired . | . . . . Machines Dismantled . | . . . . Machines Sabotaged . | . . . . Overloaded Fab Kills . | . . . . Hacking | -11 -10 -10 -8 --------- Run | Yrd Mat Sub Mat Machines Accessed 1 | . 1 . . Terminals 1 | . 1 . . Fabricators . | . . . . Repair Stations . | . . . . Recycling Units . | . . . . Scanalyzers . | . . . . Garrison Access . | . . . . Total Hacks 1 | . 1 . . Successful . | . . . . Failed 1 | . 1 . . Catastrophic . | . . . . Database Lockouts . | . . . . Manual 1 | . 1 . . Terminals 1 | . 1 . . Fabricators . | . . . . Repair Stations . | . . . . Recycling Units . | . . . . Scanalyzers . | . . . . Garrison Access . | . . . . Terminal Hacks . | . . . . Fabricator Hacks . | . . . . Repair Station Hacks . | . . . . Recycling Unit Hacks . | . . . . Scanalyzer . | . . . . Garrison Access Hacks . | . . . . Unauthorized Hacks . | . . . . Terminals . | . . . . Fabricators . | . . . . Repair Stations . | . . . . Recycling Units . | . . . . Scanalyzers . | . . . . Garrison Access . | . . . . Data Cores Recovered . | . . . . Used . | . . . . Hacking Detections 1 | . 1 . . Full Trace Events . | . . . . Feedback Events . | . . . . Feedback Blocked . | . . . . Robot Schematics Acquired . | . . . . Robots Built . | . . . . Authchips . | . . . . Time . | . . . . Total Robot Build Rating . | . . . . Part Schematics Acquired . | . . . . Parts Built . | . . . . Authchips . | . . . . Time . | . . . . Total Part Build Rating . | . . . . Part Studies Acquired . | . . . . Parts Repaired . | . . . . Time . | . . . . Parts Recycled . | . . . . Recycled Matter . | . . . . Retrieved Matter . | . . . . Retrieved Components . | . . . . Parts Scanalyzed . | . . . . Part Schematics Acquired . | . . . . Parts Damaged . | . . . . Bothacking | -11 -10 -10 -8 ------------ Run | Yrd Mat Sub Mat Used RIF Installer . | . . . . Robots Hacked . | . . . . Non-combat . | . . . . Combat . | . . . . Robot Hacks Applied . | . . . . Relay Couplers Released . | . . . . Fabnet Peak Effective % . | . . . . Robots Rewired . | . . . . Allies Hacked . | . . . . Hacks Repelled . | . . . . Allies | -11 -10 -10 -8 -------- Run | Yrd Mat Sub Mat Total Allies . | . . . . Largest Group . | . . . . Highest-Rated Group . | . . . . Highest-Rated Ally . | . . . . Total Orders . | . . . . Ally Attacks . | . . . . Total Damage . | . . . . Kills . | . . . . Allies Corrupted . | . . . . Allies Melted . | . . . . X0-1V1 Amusement Gains 27 | . 2 . 25 Good Acts 6 | . . 3 3 Bad Acts 2 | . . . 2 Intel | -11 -10 -10 -8 ------- Run | Yrd Mat Sub Mat Active Infowar (turns) 621 | 15 319 . 287 Optics 287 | . . . 287 Seismic 334 | 15 319 . . Robot Analysis Total . | . . . . Derelict Logs Recovered . | . . . . Drone Launches . | . . . . Drone Recoveries . | . . . . Exploration | -11 -10 -10 -8 ------------- Run | Yrd Mat Sub Mat Turns Passed 1403 | 136 568 389 310 Spaces Moved 852 | 73 315 186 278 Core 123 | 1 . . 122 Treads 513 | 72 315 126 . Legs . | . . . . Wheels 216 | . . 60 156 Hover . | . . . . Flight . | . . . . Fastest Speed 50 | 50 160 110 50 Average Speed 139 | 158 160 178 84 Slowest Speed 240 | 160 160 240 125 Overloaded Moves . | . . . . Propulsion Burnouts . | . . . . Robots Hopped . | . . . . Potential Cave-ins . | . . . . Cave-ins Triggered . | . . . . Exploration Rate (%) 31 | 5 64 27 30 Regions Visited 3 Branch Regions 1 Pre-discovered Areas . | . . . . Known Exits Taken . | . . . . Unknown Exits Taken 3 | 1 1 1 . Scrap Searched . | . . . . Spaces Dug . | . . . . Terrain Destroyed 52 | . 37 . 15 Melee . | . . . . Projectile . | . . . . AOE 52 | . 37 . 15 Terrain Rammed . | . . . . Walls Destroyed . | . . . . Machines Disabled . | . . . . Actions | -11 -10 -10 -8 --------- Run | Yrd Mat Sub Mat Total 952 | 85 343 207 317 Wait . | . . . . Move 849 | 72 314 185 278 Hop . | . . . . Pick Up 8 | 3 4 . 1 Fast Attach 15 | 7 1 . 7 Attach 5 | . 2 1 2 Detach 2 | . 1 . 1 Swap 2 | . 1 1 . Drop 1 | . . . 1 Fire 70 | 3 20 20 27 Melee . | . . . . Ram . | . . . . Kick . | . . . . Crush . | . . . . Escape Stasis . | . . . . Rewire . | . . . . Trap . | . . . . Miscellaneous . | . . . . Route ------- -11/Scrapyard -10/Materials (discovered 5 exits: [*Mat x2] / [*Min x2] / [*Sub]) -10/Subcaves -8/Materials (discovered 1 exit: [*Sto]) History --------- Turn | Location | Event 2 | -11/Scrapyard | Met Revision 17 16 | -11/Scrapyard | Discovered new exit (range 15) 137 | -11/Scrapyard | Entered Materials 170 | -10/Materials | Discovered new exit (range 13) 262 | -10/Materials | Discovered new exit (range 3) 314 | -10/Materials | Build established: Mutant 330 | -10/Materials | Discovered new exit (range 12) 346 | -10/Materials | Discovered new exit (range 10) 687 | -10/Materials | Discovered new exit (range 7) 696 | -10/Materials | Prayed at D.C.S.S. Altar Unit 705 | -10/Materials | Entered Subcaves 910 | -10/Subcaves | Discovered new exit (range 15) 994 | -10/Subcaves | Heat dissipation permanently improved by X0-1V1 (+25; -125 max core) 1094 | -10/Subcaves | Entered Materials 1094 | -8/Materials | Evolved 4 slots: Propulsion x1, Utility x1, Weapon x2 1200 | -8/Materials | Discovered new exit (range 15) 1221 | -8/Materials | Garrison activated, responded to threat 1266 | -8/Materials | Core integrity fell below 50% 1339 | -8/Materials | Lost 8 parts (1p1n1u5w) 1400 | -8/Materials | Core integrity fell below 20% 1404 | -8/Materials | Destroyed by H-55 Commando with Assault Rifle Last Messages --------------- shimmering waves of color. 01334_ R-06 Scavenger collects Lrg. Battery. 01335_ Acquired X0-1V1's Piety Tracker. 01336_ X0-1V1: "Did you know you're leaking matter?" (-150 matter capacity) 01345_ Acquired Com. Wheel. 01347_ K-01 Serf cleans the Fusion Modulator. 01354_ O-16 Technician: "IFF HANDSHAKE FAILED. SECURING TERMINAL." 01354_ X0-1V1 connects you with a stream of twisted latent energy (+11 energy generation). 01357_ K-01 Serf cleans the Recycling Unit. 01362_ ALERT: Hostiles spotted, dispatching reinforcements to Terminal M003. 01367_ W-25 Informer sends out distress signal. 01382_ X0-1V1: "I sense action potential over that way (Garrison Access located)." 01399_ Sight range returns to normal. 01404_ Penetrated by Slug. 01404_ X0-1V1 snickers! Map ----- +----------------------------------------------------+ | # ##+########## ####### ########??? | | ?# # ""????######+######??## ##?????????? | | ?# # "R" ??# #???# #??????????? | | #####??# # " " #?# "" #???# #??????????? | | ???????# # #?# """" ! "" #???# #??????????? | | ???????# # #?# """" T" #???# #??????????? | | ???????# #= #?# """" "" #???# #??????????? | | ???????# ########## "" #???# #??????????? | | ???????# #?# """ ## ! #???# #??????????? | | ???????# #?# "T" #?## ######## #??????????? | | ???????# #?# #?# # #??????????? | | ?????### ### !???## # #??????????? | | ?????# ##+####### # #??????????? | | ?????# # ########??????????? | | ?????# " ######## # # #?????????????????? | | ?????# ######## #= # #?????????????????? | | ?????# # ## ######## #?????????????????? | | ???#### ##""" ## #??????# #?????????????????? | | ??##! ##""" ## #??????# #?????????????????? | | ??#! ##""" ## #??????# #?????????????????? | | ??#! ##""" !## #??????# ##########????????? | | ??#! ##""" ## #??????# # """ #????????? | | ??#! ## ??# #??????# # ""R" #????????? | | ??##! ###+##### ######## # "" " #????????? | | ???#### w t m # #????????? | | ??????# @ + #????????? | | ??????# h # """ #????????? | | ??????# #################+#### """ !#????????? | | ####### #??????# # # """ #????????? | | # #??????# "" # !!= #! #????????? | | # ######## "Y # !!= ##########????????? | | # # "" # != #?????????????????? | | + + # #?????????????????? | | # # !!! #! ! #?????????????????? | | # ###### # !!! ########?????????????????? | | # #????# # ! ! +????????????????????????? | | # #????# # #????????????????????????? | | ####### #????# # """ #????????????????????????? | | ??????# ######+# """ #????????????????????????? | | ??????# # # """ #????????????????????????? | | ??????# # # #????????????????????????? | | ??????# + ########????????????????????????? | | ??????# # #???????????????????????????????? | | ??????# # #???????????????????????????????? | | ??????# # #???????????????????????????????? | | ??????############???????????????????????????????? | | ?????????????????????????????????????????????????? | | ?????????????????????????????????????????????????? | | ?????????????????????????????????????????????????? | | ?????????????????????????????????????????????????? | +----------------------------------------------------+ Best States ------------- Heat Dissipation 70 Energy Generation 16 Energy Capacity 250 Matter Stores 299 Matter Capacity 300 Sight Range 23 Terrain Scan Density 10 Evasion (%) 50 Recoil Reduction 2 Item Schematics ----------------- None Robot Schematics ------------------ None Fabricated ------------ Nothing Repaired ---------- Nothing Studied --------- None Alien Tech Used ----------------- None Achievements -------------- None Challenges ------------ None Game ------ Seed InterdictionIonicAmplifier Manual? 0 Play Time 00:10:15 Cumulative 144.8 hours Start 2026.07.30 @ 21:47:08 End 2026.07.30 @ 21:54:31 Sessions 1 Manual Loads 0 Difficulty Rogue Special Mode None Game No. 297 Rogue 297 Adventurer 0 Explorer 0 Win Type - Total 1 Types 1/0/0/0/0/0/0/0/0/0 Lore% 56 Gallery% 56 Achievement% 44 Wizard Run 0 Options --------- Layout 1 ASCII 0 Keyboard 1 Movement Arrows Keybinds 0 Fullscreen 2 Font 24/Smallcaps Map View 50x35 Zoom Use 0% Tactical HUD 1 Map Filters NONE Filters NONE Steam 1 RUN: 438839e0-8079-4e81-b18d-f408bd48eab4